bitfinex/quotes_SOLUSD_20251118
["timestamp","ask_amount","ask_price","bid_price","bid_amount"]
[1763460742494,0.1,138.41,138.4,0.66]
[1763460744574,0.1,138.41,138.38,12.89069647]
[1763460744575,0.1,138.41,138.39,0.66]
[1763460744961,0.45,138.41,138.37,0.66]
[1763460745196,5.29220962,138.41,138.37,0.66]
[1763460745404,5.19220962,138.4,138.37,0.66]
[1763460745998,4.94220962,138.41,138.37,0.66]
[1763460746207,0.35,138.4,138.37,0.66]
[1763460746514,4.84220962,138.4,138.37,0.66]
[1763460747492,5.29220962,138.41,138.37,0.66]
[1763460747701,23.31316962,138.4,138.36,0.66]
[1763460748772,18.12096,138.4,138.36,5.50220962]
[1763460748989,22.96316962,138.4,138.36,0.66]
[1763460749200,23.31316962,138.4,138.36,0.66]
[1763460750068,9.49220962,138.4,138.36,0.66]
[1763460750264,23.31316962,138.39,138.34,0.66]
[1763460750593,4.84220962,138.37,138.33,0.66]
[1763460751001,4.84220962,138.36,138.33,0.66]
[1763460751685,4.84220962,138.37,138.33,0.66]
[1763460752804,4.84220962,138.36,138.33,0.66]
[1763460752988,5.19220962,138.37,138.33,0.66]
[1763460753501,4.84220962,138.37,138.33,0.66]
[1763460754797,5.19220962,138.38,138.33,5.50220962]
[1763460755203,5.19220962,138.38,138.34,0.66]
[1763460755700,4.84220962,138.38,138.34,0.66]
[1763460755899,5.19220962,138.38,138.34,0.66]
[1763460756907,5.19220962,138.37,138.32,5.50220962]
[1763460757103,5.19220962,138.37,138.32,4.84220962]
[1763460757305,5.19220962,138.37,138.33,0.66]
[1763460758011,18.47096,138.39,138.33,0.66]
[1763460758308,5.19220962,138.38,138.33,5.50220962]
[1763460758820,4.84220962,138.37,138.33,0.66]
[1763460758988,4.84220962,138.37,138.34,0.66]
[1763460760208,4.84220962,138.37,138.27,8.04206135]
[1763460760209,4.84220962,138.35,138.26,5.93739146]
[1763460760410,4.84220962,138.33,138.29,0.66]
[1763460763315,4.84220962,138.34,138.29,5.50220962]
[1763460764215,4.84220962,138.34,138.3,5.52220962]
[1763460764394,4.84220962,138.36,138.31,5.52220962]
[1763460764596,4.84220962,138.36,138.32,0.68]
[1763460765797,5.19220962,138.36,138.32,0.68]
[1763460765994,22.42096,138.37,138.3,0.68]
[1763460765995,4.84220962,138.34,138.3,0.68]
[1763460766198,4.84220962,138.32,138.3,0.68]
[1763460766512,4.84220962,138.31,138.28,0.68]
[1763460767510,27.26316962,138.33,138.28,5.52220962]
[1763460767709,4.84220962,138.34,138.28,0.68]
[1763460767905,4.84220962,138.34,138.27,4.3]
[1763460767906,4.84220962,138.34,138.29,5.52220962]
[1763460768308,4.84220962,138.34,138.3,0.68]
[1763460768507,4.84220962,138.34,138.3,5.52220962]
[1763460768908,4.84220962,138.34,138.31,0.68]
[1763460769716,22.42096,138.35,138.31,0.68]
[1763460769906,107.54220962,138.36,138.32,4.84220962]
[1763460770106,107.54220962,138.36,138.33,0.68]
[1763460770308,102.7,138.36,138.33,0.68]
[1763460770511,107.54220962,138.36,138.33,0.68]
[1763460770813,18.12096,138.37,138.33,5.52220962]
[1763460770997,4.84220962,138.37,138.33,0.68]
[1763460773824,9.14220962,138.38,138.33,5.52220962]
[1763460774227,9.14220962,138.38,138.34,5.52220962]
[1763460774228,22.42096,138.38,138.34,5.52220962]
[1763460774517,18.12096,138.38,138.34,5.52220962]
[1763460774722,18.12096,138.38,138.35,0.68]
[1763460775730,9.14220962,138.39,138.35,0.68]
[1763460777923,4.84220962,138.38,138.35,0.68]
[1763460778622,9.49220962,138.39,138.35,0.68]
[1763460780226,4.84220962,138.38,138.32,9.78882769]
[1763460780437,4.84220962,138.37,138.33,0.68]
[1763460780821,4.84220962,138.36,138.33,0.68]
[1763460782128,0.35,138.38,138.33,0.68]
[1763460782337,4.84220962,138.38,138.33,5.52220962]
[1763460782712,4.84220962,138.38,138.34,0.68]
[1763460782929,9.14220962,138.39,138.34,5.52220962]
[1763460783112,27.61316962,138.39,138.34,5.52220962]
[1763460783307,27.61316962,138.39,138.35,0.68]
[1763460784412,5.19220962,138.38,138.34,0.68]
[1763460784612,4.84220962,138.37,138.34,0.68]
[1763460784912,5.19220962,138.37,138.34,0.68]
[1763460785233,9.49220962,138.36,138.32,0.68]
[1763460785435,22.77096,138.36,138.32,0.68]
[1763460785620,4.84220962,138.35,138.32,0.68]
[1763460786519,27.61316962,138.36,138.32,0.68]
[1763460787632,22.77096,138.36,138.32,0.68]
[1763460787833,5.19220962,138.35,138.3,4.98]
[1763460788126,4.84220962,138.35,138.31,0.68]
[1763460788536,5.19220962,138.35,138.31,0.68]
[1763460789630,18.12096,138.35,138.31,5.52220962]
[1763460789933,9.14220962,138.36,138.31,5.52220962]
[1763460790130,9.14220962,138.36,138.32,0.68]
[1763460790727,9.49220962,138.36,138.32,0.68]
[1763460791433,9.14220962,138.36,138.32,0.68]
[1763460791738,9.49220962,138.36,138.32,0.68]
[1763460792318,4.3,138.36,138.32,0.68]
[1763460792518,9.14220962,138.36,138.32,0.68]
[1763460792926,4.84220962,138.36,138.32,0.68]
[1763460793117,9.14220962,138.36,138.32,0.68]
[1763460793920,9.49220962,138.36,138.32,0.68]
[1763460795341,4.65,138.36,138.32,0.68]
[1763460795524,9.14220962,138.36,138.32,0.68]
[1763460795844,9.49220962,138.36,138.32,0.68]
[1763460796037,9.14220962,138.36,138.32,0.68]
[1763460797350,9.49220962,138.36,138.32,0.68]
[1763460798444,4.65,138.36,138.32,0.68]
[1763460798655,9.49220962,138.36,138.32,0.68]
[1763460800334,23.31316962,138.35,138.31,0.72]
[1763460803753,22.96316962,138.35,138.31,0.72]
[1763460804523,18.12096,138.35,138.31,5.56220962]
[1763460805026,18.12096,138.35,138.32,0.72]
[1763460806153,22.42096,138.35,138.32,0.72]
[1763460807351,19.18041623,138.35,138.32,0.72]
[1763460808447,22.63222277,138.35,138.32,0.72]
[1763460808650,22.28222277,138.35,138.32,0.72]
[1763460811357,3.45180654,138.34,138.3,0.72]
[1763460811561,7.40180654,138.33,138.28,0.72]
[1763460811857,3.10180654,138.31,138.28,18.84096]
[1763460812167,7.40180654,138.31,138.28,18.84096]
[1763460812458,4.3,138.31,138.29,0.72]
[1763460813048,4.3,138.31,138.29,3.82180654]
[1763460813268,7.40180654,138.33,138.3,0.72]
[1763460815364,3.10180654,138.33,138.3,0.72]
[1763460815578,7.40180654,138.33,138.3,0.72]
[1763460816475,3.10180654,138.32,138.3,0.72]
[1763460816976,7.40180654,138.33,138.3,0.72]
[1763460817277,7.75180654,138.33,138.3,0.72]
[1763460817581,7.40180654,138.33,138.3,0.72]
[1763460818158,3.10180654,138.32,138.3,0.72]
[1763460820092,3.10180654,138.32,138.27,3.10180654]
[1763460820282,3.10180654,138.32,138.3,0.72]
[1763460822286,3.10180654,138.32,138.27,3.10180654]
[1763460822460,3.10180654,138.32,138.28,0.72]
[1763460823273,4.3,138.33,138.28,3.82180654]
[1763460823464,7.40180654,138.33,138.29,0.72]
[1763460824070,4.3,138.33,138.29,3.82180654]
[1763460824270,18.12096,138.34,138.29,3.82180654]
[1763460824470,18.12096,138.34,138.3,0.72]
[1763460824783,18.12096,138.34,138.3,3.82180654]
[1763460825185,7.40180654,138.35,138.31,3.82180654]
[1763460825186,4.3,138.35,138.31,3.82180654]
[1763460825689,4.3,138.35,138.32,0.72]
[1763460825888,4.3,138.35,138.32,3.82180654]
[1763460826187,4.3,138.35,138.32,0.72]
[1763460826383,4.3,138.35,138.33,0.72]
[1763460826580,21.22276654,138.36,138.33,0.72]
[1763460826885,25.52276654,138.36,138.33,0.72]
[1763460827892,3.10180654,138.35,138.33,0.72]
[1763460830298,25.52276654,138.36,138.33,0.72]
[1763460830666,22.42096,138.36,138.33,0.72]
[1763460834203,22.77096,138.36,138.33,0.72]
[1763460834896,22.42096,138.36,138.33,0.72]
[1763460838677,25.52276654,138.36,138.33,0.72]
[1763460839095,3.10180654,138.35,138.33,0.72]
[1763460839679,22.42096,138.36,138.33,0.72]
[1763460840502,18.12096,138.37,138.34,3.10180654]
[1763460840807,4.3,138.38,138.34,12.89063423]
[1763460840975,4.3,138.38,138.35,3.82180654]
[1763460841477,4.3,138.38,138.36,0.72]
[1763460841699,7.40180654,138.38,138.36,0.72]
[1763460841996,3.10180654,138.38,138.36,0.72]
[1763460842393,7.40180654,138.4,138.36,0.72]
[1763460842618,3.10180654,138.39,138.36,0.72]
[1763460844202,4.3,138.4,138.36,3.82180654]
[1763460844436,0.1,138.41,138.37,3.10180654]
[1763460844571,0.1,138.41,138.38,3.10180654]
[1763460844777,0.1,138.41,138.39,3.10180654]
[1763460845020,0.1,138.41,138.39,3.82180654]
[1763460845318,0.1,138.41,138.4,0.72]
[1763460847175,0.1,138.41,138.4,3.82180654]
[1763460848416,0.1,138.41,138.4,0.72]
[1763460850520,0.1,138.41,138.37,7.40180654]
[1763460850696,3.20180654,138.41,138.38,0.72]
[1763460851036,3.10180654,138.4,138.38,0.72]
[1763460851394,3.20180654,138.41,138.38,0.72]
[1763460853530,3.10180654,138.4,138.36,0.68]
[1763460853743,3.10180654,138.39,138.36,0.68]
[1763460854405,3.10180654,138.4,138.36,0.68]
[1763460855606,21.22276654,138.4,138.36,0.68]
[1763460856008,3.10180654,138.39,138.36,0.68]
[1763460857323,21.22276654,138.4,138.36,0.68]
[1763460857519,21.22276654,138.4,138.36,3.78180654]
[1763460857910,21.22276654,138.4,138.37,0.68]
[1763460858121,3.10180654,138.4,138.37,0.68]
[1763460858521,0.1,138.41,138.37,0.68]
[1763460858713,21.32276654,138.41,138.37,0.68]
[1763460860135,21.67276654,138.41,138.37,0.68]
[1763460860834,21.32276654,138.41,138.37,0.68]
[1763460862620,18.22096,138.41,138.37,0.68]
[1763460862828,0.1,138.41,138.37,3.78180654]
[1763460863126,0.1,138.41,138.38,0.7]
[1763460864336,0.1,138.41,138.38,3.80180654]
[1763460864722,0.1,138.41,138.39,3.80180654]
[1763460865038,0.1,138.41,138.4,3.80180654]
[1763460865424,0.1,138.41,138.4,0.7]
[1763460866444,0.1,138.41,138.36,9.78882769]
[1763460866445,3.20180654,138.41,138.36,14.08882769]
[1763460866621,3.20180654,138.41,138.37,0.7]
[1763460866821,5.29310759,138.41,138.37,0.7]
[1763460867115,4.84310759,138.4,138.37,0.7]
[1763460868421,4.94310759,138.41,138.37,0.7]
[1763460869638,0.1,138.41,138.37,0.7]
[1763460869844,4.94310759,138.41,138.37,0.7]
[1763460870651,5.29310759,138.41,138.37,0.7]
[1763460870956,4.94310759,138.41,138.37,0.7]
[1763460871155,0.1,138.41,138.37,5.54310759]
[1763460871656,0.1,138.41,138.38,0.7]
[1763460872426,0.1,138.41,138.39,4.84310759]
[1763460872831,0.1,138.41,138.4,0.7]
[1763460878330,0.1,138.41,138.4,5.54310759]
[1763460881556,0.1,138.41,138.39,0.7]
[1763460881864,0.1,138.41,138.39,5.54310759]
[1763460882031,0.1,138.41,138.4,4.84310759]
[1763460882226,0.1,138.41,138.4,0.7]
[1763460883760,0.1,138.41,138.4,5.54310759]
[1763460883933,0.1,138.41,138.4,0.7]
[1763460886334,4.94310759,138.41,138.38,9.14310759]
[1763460886644,0.1,138.41,138.39,0.7]
[1763460892462,4.84310759,138.4,138.36,10.48882769]
[1763460892765,4.84310759,138.4,138.37,5.54310759]
[1763460892951,4.84310759,138.4,138.37,0.7]
[1763460893162,5.29310759,138.41,138.37,0.7]
[1763460893358,4.84310759,138.4,138.37,0.7]
[1763460896956,5.29310759,138.41,138.37,0.7]
[1763460897865,4.94310759,138.41,138.37,0.7]
[1763460898169,4.84310759,138.4,138.37,0.7]
[1763460898544,23.41406759,138.41,138.37,0.7]
[1763460899968,5.19310759,138.4,138.37,0.7]
[1763460900146,23.41406759,138.41,138.37,0.7]
[1763460900558,23.06406759,138.41,138.37,0.7]
[1763460900776,23.41406759,138.41,138.37,0.7]
[1763460901361,5.19310759,138.4,138.35,9.14310759]
[1763460901561,4.84310759,138.37,138.33,10.48882769]
[1763460901877,4.84310759,138.36,138.33,0.7]
[1763460902176,4.84310759,138.37,138.34,0.7]
[1763460903762,4.3,138.4,138.34,0.7]
[1763460903979,27.26406759,138.4,138.35,4.84310759]
[1763460904156,22.42096,138.4,138.36,4.84310759]
[1763460904494,22.42096,138.4,138.37,0.7]
[1763460904778,4.3,138.4,138.37,0.7]
[1763460905355,18.22096,138.41,138.37,0.7]
[1763460905555,4.94310759,138.41,138.37,0.7]
[1763460905761,0.1,138.41,138.37,5.54310759]
[1763460905963,0.1,138.41,138.38,4.84310759]
[1763460906162,0.1,138.41,138.38,5.54310759]
[1763460906361,0.1,138.41,138.39,0.7]
[1763460907967,0.1,138.41,138.39,5.54310759]
[1763460908375,0.1,138.41,138.4,0.7]
[1763460911287,0.1,138.41,138.37,18.93193528]
[1763460911584,0.1,138.41,138.37,0.7]
[1763460911585,4.84310759,138.4,138.37,0.7]
[1763460911777,18.57096,138.41,138.37,0.7]
[1763460911994,5.19310759,138.4,138.37,0.7]
[1763460912379,4.84310759,138.4,138.37,0.7]
[1763460913592,18.57096,138.41,138.36,4.3]
[1763460913593,5.19310759,138.39,138.36,4.3]
[1763460913769,4.84310759,138.39,138.36,4.3]
[1763460914092,4.84310759,138.39,138.37,0.67]
[1763460914586,0.35,138.38,138.34,0.67]
[1763460914764,4.84310759,138.37,138.34,0.67]
[1763460915383,5.19310759,138.38,138.34,0.67]
[1763460915577,4.84310759,138.38,138.34,0.67]
[1763460916482,5.19310759,138.38,138.34,0.67]
[1763460916687,4.84310759,138.37,138.34,0.67]
[1763460916885,5.19310759,138.37,138.33,0.67]
[1763460918198,5.19310759,138.36,138.33,0.67]
[1763460918390,5.19310759,138.36,138.32,4.3]
[1763460918590,5.19310759,138.36,138.32,4.97]
[1763460918791,4.84310759,138.36,138.33,0.67]
[1763460918992,5.19310759,138.36,138.32,4.3]
[1763460919180,4.84310759,138.37,138.33,0.67]
[1763460919384,18.12096,138.38,138.33,5.51310759]
[1763460919590,22.96406759,138.38,138.34,4.84310759]
[1763460919781,22.96406759,138.38,138.34,5.55310759]
[1763460919982,22.96406759,138.38,138.35,0.71]
[1763460920183,27.26406759,138.39,138.35,0.71]
[1763460920581,4.84310759,138.38,138.35,0.71]
[1763460920879,27.26406759,138.39,138.35,0.71]
[1763460922085,27.26406759,138.39,138.33,4.84310759]
[1763460922086,0.35,138.38,138.33,4.84310759]
[1763460922282,4.84310759,138.38,138.35,0.71]
[1763460922693,4.84310759,138.38,138.33,4.84310759]
[1763460922893,5.19310759,138.37,138.34,0.71]
[1763460923095,4.84310759,138.37,138.34,0.71]
[1763460923891,4.84310759,138.36,138.33,0.71]
[1763460924104,5.19310759,138.36,138.33,0.71]
[1763460924315,4.84310759,138.36,138.33,0.71]
[1763460925002,0.35,138.37,138.33,0.71]
[1763460925305,4.84310759,138.37,138.33,0.71]
[1763460925495,5.19310759,138.37,138.33,0.71]
[1763460926590,4.84310759,138.37,138.33,0.71]
[1763460926792,3.10106058,138.37,138.33,0.71]
[1763460927088,3.45106058,138.37,138.33,0.71]
[1763460928107,3.45106058,138.37,138.33,3.81106058]
[1763460928305,3.45106058,138.37,138.33,0.71]
[1763460928495,0.35,138.36,138.32,8.11106058]
[1763460928699,3.45106058,138.36,138.33,0.71]
[1763460928893,3.45106058,138.36,138.32,5.01]
[1763460929217,3.10106058,138.35,138.3,3.10106058]
[1763460929407,3.45106058,138.35,138.3,3.10106058]
[1763460929710,3.45106058,138.35,138.31,0.71]
[1763460931491,22.42096,138.36,138.31,0.71]
[1763460931492,25.52202058,138.36,138.31,3.81106058]
[1763460931798,22.42096,138.36,138.32,3.10106058]
[1763460932012,22.42096,138.36,138.32,3.81106058]
[1763460932310,18.12096,138.36,138.33,0.71]
[1763460933694,21.22202058,138.36,138.33,0.71]
[1763460933896,18.12096,138.36,138.33,0.71]
[1763460934719,3.10106058,138.37,138.33,0.71]
[1763460934930,128.22202058,138.38,138.33,3.81106058]
[1763460935114,0.45,138.41,138.35,3.10106058]
[1763460935300,25.52202058,138.4,138.35,3.10106058]
[1763460935499,25.52202058,138.4,138.36,0.71]
[1763460935824,3.10106058,138.39,138.36,0.71]
[1763460937408,25.87202058,138.4,138.36,0.71]
[1763460938999,3.10106058,138.37,138.32,12.88988827]
[1763460939224,3.10106058,138.38,138.33,3.81106058]
[1763460939719,3.10106058,138.38,138.34,0.71]
[1763460940309,3.10106058,138.39,138.34,3.81106058]
[1763460940713,3.10106058,138.39,138.35,0.71]
[1763460941226,3.55106058,138.41,138.36,3.10106058]
[1763460941531,7.85106058,138.41,138.36,3.10106058]
[1763460941706,7.85106058,138.41,138.37,0.71]
[1763460942306,0.35,138.4,138.37,0.71]
[1763460942708,0.35,138.4,138.36,3.10106058]
[1763460942917,3.45106058,138.4,138.37,0.71]
[1763460944703,3.10106058,138.4,138.37,0.71]
[1763460945114,7.50106058,138.41,138.37,0.71]
[1763460946226,3.20106058,138.41,138.37,0.71]
[1763460946431,7.50106058,138.41,138.37,0.71]
[1763460946629,4.4,138.41,138.37,3.81106058]
[1763460946830,4.4,138.41,138.38,0.71]
[1763460947015,0.1,138.41,138.38,0.71]
[1763460949431,3.20106058,138.41,138.38,0.71]
[1763460949634,0.1,138.41,138.38,0.71]
[1763460950531,0.1,138.41,138.4,3.10106058]
[1763460950913,0.1,138.41,138.4,3.81106058]
[1763460951313,0.1,138.41,138.4,0.71]
[1763460954941,0.1,138.41,138.4,3.81106058]
[1763460955736,0.1,138.41,138.4,0.71]
[1763460959843,0.1,138.41,138.4,3.81106058]
[1763460960742,0.1,138.41,138.4,13.59988827]
[1763460961836,0.1,138.41,138.4,10.49882769]
[1763460962023,0.1,138.41,138.4,13.59988827]
[1763460962220,0.1,138.41,138.4,10.49882769]
[1763460962423,0.1,138.41,138.4,13.59988827]
[1763460965344,0.1,138.42,138.41,9.78882769]
[1763460965551,0.1,138.45,138.41,17.87988827]
[1763460965844,0.1,138.45,138.43,9.78882769]
[1763460966043,0.1,138.45,138.44,7.38106058]
[1763460966222,0.1,138.45,138.44,8.09106058]
[1763460967769,0.1,138.45,138.44,4.28]
[1763460967938,0.1,138.45,138.43,3.10106058]
[1763460968129,0.1,138.45,138.43,3.81106058]
[1763460970367,0.1,138.45,138.44,0.71]
[1763460971657,0.1,138.45,138.43,3.10106058]
[1763460971860,0.1,138.45,138.43,3.81106058]
[1763460973149,0.1,138.45,138.43,0.71]
[1763460974670,0.55,138.44,138.41,9.78882769]
[1763460974875,0.55,138.44,138.41,17.88988827]
[1763460975042,0.65,138.45,138.42,0.72]
[1763460975365,0.1,138.45,138.42,0.72]
[1763460975567,0.1,138.45,138.42,3.82106058]
[1763460976445,0.1,138.45,138.42,3.10106058]
[1763460976759,0.1,138.45,138.42,0.72]
[1763460976943,0.1,138.45,138.42,3.10106058]
[1763460977151,0.1,138.45,138.43,0.72]
[1763460977447,0.1,138.45,138.42,3.10106058]
[1763460977657,0.65,138.45,138.42,3.82106058]
[1763460977968,0.1,138.45,138.42,3.82106058]
[1763460978557,0.1,138.45,138.43,3.82106058]
[1763460978958,0.1,138.45,138.43,0.72]
[1763460979566,0.1,138.45,138.44,3.10106058]
[1763460979967,0.1,138.45,138.44,3.79106058]
[1763460980478,0.1,138.45,138.44,0.69]
[1763460980675,0.1,138.45,138.41,14.06882769]
[1763460980850,0.1,138.45,138.42,3.79106058]
[1763460981252,0.1,138.45,138.43,0.69]
[1763460983682,0.55,138.44,138.42,4.28]
[1763460983890,3.10106058,138.43,138.38,9.78882769]
[1763460984086,0.55,138.44,138.33,5.97261407]
[1763460984087,3.10106058,138.4,138.33,5.97261407]
[1763460984294,3.65106058,138.39,138.35,3.10106058]
[1763460984468,3.65106058,138.39,138.35,0.69]
[1763460985360,22.40096,138.41,138.35,0.69]
[1763460985564,3.10106058,138.39,138.35,3.79106058]
[1763460986103,3.65106058,138.39,138.35,0.69]
[1763460986411,3.10106058,138.37,138.33,8.07106058]
[1763460986762,4.84538895,138.37,138.34,0.69]
[1763460986998,5.39538895,138.37,138.34,0.69]
[1763460987369,4.28,138.41,138.34,0.69]
[1763460987370,4.84538895,138.38,138.34,5.53538895]
[1763460987693,4.84538895,138.4,138.35,4.84538895]
[1763460987872,4.84538895,138.4,138.35,5.53538895]
[1763460987873,5.39538895,138.4,138.35,5.53538895]
[1763460988078,4.84538895,138.39,138.36,0.69]
[1763460988278,5.39538895,138.39,138.36,0.69]
[1763460988994,5.39538895,138.39,138.34,0.69]
[1763460989186,5.39538895,138.39,138.35,4.84538895]
[1763460989590,5.39538895,138.39,138.35,0.69]
[1763460989780,5.39538895,138.38,138.34,0.69]
[1763460989980,4.84538895,138.39,138.34,5.53538895]
[1763460990186,4.84538895,138.38,138.34,0.69]
[1763460990591,0.55,138.38,138.34,5.53538895]
[1763460991103,5.39538895,138.39,138.35,0.69]
[1763460994106,4.84538895,138.39,138.35,0.69]
[1763460994289,5.39538895,138.38,138.34,0.69]
[1763460994488,4.84538895,138.37,138.33,0.69]
[1763460994691,5.39538895,138.38,138.34,0.69]
[1763460994878,0.55,138.37,138.33,5.53538895]
[1763460995390,5.39538895,138.37,138.33,0.69]
[1763460995585,5.39538895,138.37,138.34,0.69]
[1763460995793,4.84538895,138.38,138.34,0.69]
[1763460995992,4.84538895,138.38,138.33,5.53538895]
[1763460996177,0.55,138.37,138.34,0.69]
[1763460996595,5.39538895,138.37,138.34,0.69]
[1763460998503,0.55,138.37,138.34,0.69]
[1763460999187,5.39538895,138.37,138.32,9.12538895]
[1763460999387,102.7,138.4,138.36,4.84538895]
[1763460999697,4.84538895,138.4,138.35,4.84538895]
[1763460999904,5.39538895,138.4,138.35,4.84538895]
[1763461000114,5.39538895,138.4,138.36,0.69]
[1763461000796,9.12538895,138.42,138.37,4.84538895]
[1763461001287,9.67538895,138.42,138.38,0.69]
[1763461001488,4.83,138.42,138.38,0.69]
[1763461001802,9.67538895,138.42,138.38,0.69]
[1763461002879,5.39538895,138.42,138.38,0.69]
[1763461004597,22.40096,138.43,138.38,5.53538895]
[1763461004799,27.24634895,138.43,138.38,5.53538895]
[1763461005000,27.24634895,138.43,138.39,0.66]
[1763461005314,0.1,138.45,138.41,4.84538895]
[1763461005698,0.1,138.45,138.42,0.66]
[1763461010112,0.1,138.45,138.43,4.84538895]
[1763461010500,0.1,138.45,138.44,0.66]
[1763461021745,0.1,138.45,138.44,15.29421664]
[1763461023453,0.1,138.45,138.44,10.44882769]
[1763461023641,0.1,138.45,138.43,0.66]
[1763461023838,0.1,138.45,138.43,4.94]
[1763461024250,0.1,138.45,138.44,0.66]
[1763461029956,0.1,138.45,138.44,15.29421664]
[1763461030541,0.1,138.45,138.44,33.41517664]
[1763461031140,0.1,138.45,138.43,4.84538895]
[1763461031351,0.1,138.45,138.43,9.78538895]
[1763461031555,0.1,138.45,138.43,4.94]
[1763461032054,0.1,138.45,138.44,0.66]
[1763461033734,0.1,138.45,138.44,15.29421664]
[1763461034466,0.1,138.45,138.44,10.44882769]
[1763461034644,0.1,138.45,138.44,15.29421664]
[1763461035842,0.1,138.45,138.44,10.44882769]
[1763461036044,0.1,138.45,138.44,15.29421664]
[1763461037866,0.1,138.45,138.44,33.41517664]
[1763461038665,0.1,138.45,138.44,10.44882769]
[1763461039357,0.1,138.45,138.44,0.66]
[1763461039560,0.1,138.45,138.43,4.28]
[1763461040154,0.1,138.45,138.43,4.96]
[1763461041255,0.1,138.45,138.43,0.68]
[1763461041778,0.1,138.45,138.42,4.96]
[1763461042159,0.1,138.45,138.43,0.68]
[1763461043372,0.1,138.45,138.43,5.52538895]
[1763461043678,0.1,138.45,138.44,4.96]
[1763461044653,0.1,138.45,138.44,19.59421664]
[1763461046878,0.1,138.45,138.44,17.84470103]
[1763461048993,0.1,138.48,138.47,27.90978769]
[1763461049273,0.1,138.48,138.47,35.28566103]
[1763461049479,0.1,138.48,138.47,35.96566103]
[1763461049856,0.1,138.48,138.47,57.78498102]
[1763461050055,0.1,138.48,138.47,63.77689992]
[1763461050478,0.1,138.48,138.47,57.78498102]
[1763461050989,0.1,138.49,138.48,9.78882769]
[1763461051170,0.1,138.5,138.48,19.55661993]
[1763461051365,10.83941431,138.52,138.51,27.90978769]
[1763461051686,10.83941431,138.52,138.51,35.28566103]
[1763461051883,10.83941431,138.52,138.51,46.80507534]
[1763461052589,10.83941431,138.52,138.51,43.709202]
[1763461052975,10.83941431,138.52,138.51,46.80507534]
[1763461054794,0.1,138.54,138.52,9.78882769]
[1763461055102,0.1,138.54,138.53,20.26057437]
[1763461055300,0.1,138.54,138.53,16.66057437]
[1763461055478,0.1,138.54,138.53,20.94057437]
[1763461056474,0.1,138.54,138.53,16.66057437]
[1763461056703,0.1,138.54,138.53,20.94057437]
[1763461057288,0.1,138.59,138.54,9.78882769]
[1763461057490,0.1,138.59,138.54,13.56470103]
[1763461059304,0.1,138.59,138.54,17.84470103]
[1763461059490,0.1,138.59,138.54,20.73979023]
[1763461061808,0.1,138.59,138.54,16.45979023]
[1763461062013,0.1,138.59,138.54,20.73979023]
[1763461062226,0.1,138.59,138.54,79.45979023]
[1763461062514,0.1,138.59,138.54,83.73979023]
[1763461062694,0.72,138.58,138.54,83.72979023]
[1763461062904,0.72,138.58,138.54,76.55470103]
[1763461063095,0.72,138.58,138.54,80.83470103]
[1763461063299,0.72,138.58,138.54,77.73882769]
[1763461063499,0.72,138.58,138.54,80.83470103]
[1763461063902,0.1,138.59,138.54,75.88470103]
[1763461064094,0.72,138.57,138.54,17.16470103]
[1763461064697,0.72,138.57,138.54,12.88470103]
[1763461065004,0.72,138.57,138.54,17.16470103]
[1763461065209,0.82,138.55,138.54,12.88470103]
[1763461065610,0.82,138.55,138.54,14.06882769]
[1763461066112,0.82,138.55,138.54,9.78882769]
[1763461066302,0.82,138.55,138.54,7.37587334]